bitfinex/quotes_ETHUSD_20230113
["timestamp","ask_amount","ask_price","bid_price","bid_amount"]
[1673643463483,20.99487,1429.0,1428.5,22.27584697]
[1673643463688,7.06429,1429.0,1428.6,1.175]
[1673643463896,0.066,1429.0,1428.7,1.2855]
[1673643464121,6.9979,1429.0,1428.7,0.1175]
[1673643464343,21.06006,1429.0,1428.5,0.68935461]
[1673643464499,27.99588,1428.8,1428.5,0.62335461]
[1673643464714,4.404,1428.7,1428.5,0.62335461]
[1673643464915,20.99958,1428.6,1428.5,0.62335461]
[1673643465130,29.185938,1428.6,1428.5,0.62335461]
[1673643466313,26.64558,1428.6,1428.5,0.62335461]
[1673643466746,33.64544,1428.6,1428.0,0.10204954]
[1673643467075,28.00568,1428.3,1428.0,0.03604954]
[1673643467229,15.17962,1428.1,1428.0,0.03604954]
[1673643467442,12.69668086,1428.1,1428.0,0.03604954]
[1673643467704,15.69668086,1428.1,1428.0,0.03604954]
[1673643468102,0.296,1428.1,1428.0,0.03604954]
[1673643468284,15.08062,1428.1,1428.0,0.03604954]
[1673643468496,15.14662,1428.1,1428.0,0.03604954]
[1673643468700,21.757508,1428.1,1428.0,0.03604954]
[1673643469167,25.36384072,1428.1,1428.0,4.954e-05]
[1673643469347,26.53884072,1428.1,1427.9,2.5]
[1673643469573,17.2356,1428.0,1427.9,2.5]
[1673643469748,17.3016,1428.0,1427.9,2.5]
[1673643469956,21.01434407,1428.0,1427.7,0.02229221]
[1673643470215,21.01434407,1428.0,1427.6,0.0086]
[1673643470216,22.57834,1427.8,1427.6,0.0086]
[1673643470406,16.86854,1427.7,1427.6,0.0086]
[1673643470620,16.93454,1427.7,1427.6,0.0086]
[1673643470853,23.02875,1427.7,1427.6,0.0086]
[1673643471026,23.02875,1427.7,1427.4,0.21702835]
[1673643471244,23.02875,1427.7,1427.2,0.04807486]
[1673643471245,1.555,1427.5,1427.2,0.04807486]
[1673643471462,15.31748,1427.4,1427.2,0.04807486]
[1673643471663,11.67668741,1427.4,1427.2,0.04807486]
[1673643471875,20.83598541,1427.4,1427.2,0.04807486]
[1673643472085,3.60633272,1427.3,1427.0,10.1445886]
[1673643472297,3.60633272,1427.3,1426.8,0.04549936]
[1673643472298,3.117,1427.1,1426.8,0.04549936]
[1673643472515,21.0231,1427.0,1426.8,0.04549936]
[1673643472909,11.56019,1426.9,1426.8,0.04549936]
[1673643473067,11.62619,1426.9,1426.8,0.04549936]
[1673643473282,10.07419,1426.9,1426.8,0.04549936]
[1673643473548,1.567,1427.2,1426.9,4.59078524]
[1673643473748,0.06,1427.3,1426.9,5.1621137]
[1673643473749,10.00643,1427.3,1426.9,5.1621137]
[1673643473905,0.23,1427.2,1426.9,5.2281137]
[1673643474116,0.066,1427.3,1426.9,4.65678524]
[1673643474326,0.066,1427.5,1427.0,10.61398272]
[1673643474593,7.00484,1427.6,1427.1,3.60633272]
[1673643474745,7.07084,1427.6,1427.2,2.5]
[1673643475216,14.01148,1427.4,1427.2,2.5]
[1673643475433,15.64148,1427.4,1427.2,2.5]
[1673643475621,15.64148,1427.4,1427.0,0.066]
[1673643475622,4.555,1427.3,1427.0,0.066]
[1673643475831,7.00721,1427.1,1426.9,7.09078524]
[1673643476003,7.07321,1427.1,1426.9,7.15678524]
[1673643476220,1.256,1427.0,1426.9,7.15678524]
[1673643476426,1.256,1427.0,1426.9,4.65678524]
[1673643476682,1.256,1427.0,1426.8,0.11149936]
[1673643476683,15.2714,1427.0,1426.8,0.11149936]
[1673643476848,15.3374,1427.0,1426.8,0.04549936]
[1673643477057,1.561,1426.9,1426.8,0.04549936]
[1673643477322,4.561,1426.9,1426.8,0.04549936]
[1673643477494,11.56919,1426.9,1426.8,0.04549936]
[1673643477685,11.63519,1426.9,1426.8,0.04549936]
[1673643477902,4.627,1426.9,1426.8,0.04549936]
[1673643478105,4.561,1426.9,1426.8,0.04549936]
[1673643478375,3.23,1426.9,1426.8,0.04549936]
[1673643478683,10.23819,1426.9,1426.8,0.04549936]
[1673643478859,10.30419,1426.9,1426.8,0.04549936]
[1673643480055,10.30419,1426.9,1426.8,2.54549936]
[1673643480225,10.30419,1426.9,1426.8,0.04549936]
[1673643480226,17.31238,1426.9,1426.8,0.04549936]
[1673643480836,17.31238,1426.9,1426.8,0.07129936]
[1673643481583,18.87338,1426.9,1426.8,0.07129936]
[1673643481788,1.567,1426.8,1426.5,0.03339592]
[1673643482007,1.567,1426.6,1426.5,0.03339592]
[1673643482217,29.20234272,1426.6,1426.5,0.03339592]
[1673643482521,8.57613,1426.8,1426.6,0.41283287]
[1673643482791,0.066,1426.8,1426.6,0.41283287]
[1673643483102,7.00819,1426.9,1426.7,3.60633272]
[1673643483103,0.066,1426.9,1426.7,3.60633272]
[1673643483255,7.03661,1427.3,1426.8,5.10489033]
[1673643483256,0.066,1427.3,1426.8,5.10489033]
[1673643483467,2.5,1427.0,1426.8,5.17089033]
[1673643483675,2.5,1427.0,1426.8,1.56455761]
[1673643483932,2.5,1427.0,1426.8,0.06092434]
[1673643484565,7.07344,1427.1,1426.8,0.06092434]
[1673643484724,0.066,1427.1,1426.8,0.06092434]
[1673643484936,7.07277,1427.2,1426.8,0.06092434]
[1673643485192,2.5,1426.9,1426.8,1.13792434]
[1673643485513,2.5,1426.9,1426.8,5.01474949]
[1673643485835,2.5,1426.9,1426.8,1.47441677]
[1673643486001,2.5,1426.9,1426.8,22.16612949]
[1673643486352,0.066,1427.1,1426.8,22.23212949]
[1673643486562,7.06538,1427.5,1426.9,5.17333272]
[1673643486563,7.07138,1427.5,1426.9,5.17333272]
[1673643486729,7.07138,1427.5,1427.0,4.12366599]
[1673643486930,2.566,1427.5,1427.0,4.12366599]
[1673643487185,2.5,1427.5,1427.1,5.16633272]
[1673643487394,2.5,1427.5,1427.2,3.60633272]
[1673643487722,16.51065,1427.5,1427.2,4.13074356]
[1673643487982,16.57665,1427.5,1427.2,4.13074356]
[1673643488156,16.57665,1427.5,1427.2,0.52441084]
[1673643488311,16.65403,1427.5,1427.1,0.01177565]
[1673643488864,9.6488,1427.5,1427.1,0.01177565]
[1673643489063,9.64866,1427.5,1427.1,0.01177565]
[1673643489607,7.14866,1427.5,1427.1,0.01177565]
[1673643489810,7.07144,1427.5,1427.1,0.01177565]
[1673643490237,19.54635772,1427.5,1427.1,2.51177565]
[1673643490414,19.54635772,1427.5,1427.0,0.58333327]
[1673643490636,3.23,1427.4,1426.9,2.5]
[1673643490835,17.24199,1427.4,1426.9,2.5]
[1673643491164,17.30799,1427.4,1426.9,0.01837967]
[1673643491582,18.86399,1427.4,1426.9,0.01837967]
[1673643491933,18.86399,1427.4,1426.8,0.33141677]
[1673643491934,1.567,1427.1,1426.8,0.06092434]
[1673643492096,21.2531,1427.0,1426.8,0.06092434]
[1673643492317,3.0,1426.9,1426.8,0.06092434]
[1673643492631,17.24638,1426.9,1426.8,0.06092434]
[1673643492995,17.31238,1426.9,1426.8,0.06092434]
[1673643493613,10.07419,1426.9,1426.8,0.06092434]
[1673643493781,17.31238,1426.9,1426.8,0.06092434]
[1673643494509,28.475193,1426.9,1426.6,0.41283287]
[1673643494880,22.58254,1426.7,1426.6,0.41283287]
[1673643495091,25.87854,1426.7,1426.6,0.41283287]
[1673643495473,29.48487272,1426.7,1426.6,0.41283287]
[1673643495683,33.29097699,1426.7,1426.6,0.41283287]
[1673643496034,33.29097699,1426.7,1426.5,0.03339592]
[1673643496189,18.80334,1426.6,1426.5,0.03339592]
[1673643496404,11.85967,1426.6,1426.5,0.03339592]
[1673643496630,4.85,1426.6,1426.5,0.03339592]
[1673643496861,4.784,1426.6,1426.5,0.03339592]
[1673643497238,18.80334,1426.6,1426.5,0.03339592]
[1673643497463,9.07782764,1426.6,1426.5,0.03339592]
[1673643497675,10.64482764,1426.6,1426.5,0.03339592]
[1673643497880,3.63515764,1426.6,1426.5,0.03339592]
[1673643498098,3.56915764,1426.6,1426.5,0.03339592]
[1673643498867,4.067,1426.6,1426.5,0.03339592]
[1673643499313,4.567,1426.6,1426.5,0.03339592]
[1673643499778,8.40333272,1426.6,1426.5,0.03339592]
[1673643499992,15.47900272,1426.6,1426.5,0.03339592]
[1673643500202,22.48867272,1426.6,1426.5,0.03339592]
[1673643500758,4.633,1426.6,1426.5,0.03339592]
[1673643501073,10.00967,1426.6,1426.5,0.03339592]
[1673643501290,17.08534,1426.6,1426.5,0.03339592]
[1673643501657,20.69167272,1426.6,1426.5,0.03339592]
[1673643501875,22.25867272,1426.6,1426.5,0.03339592]
[1673643502340,25.38546899,1426.6,1426.5,0.03339592]
[1673643502499,25.38546899,1426.6,1426.4,0.64148]
[1673643502716,9.95333272,1426.5,1426.4,0.64148]
[1673643502920,24.03965272,1426.5,1426.3,0.03339592]
[1673643503143,5.17333272,1426.4,1426.3,0.03339592]
[1673643503361,21.89609799,1426.4,1426.3,0.03339592]
[1673643503560,24.89609799,1426.4,1426.3,0.03339592]
[1673643504378,24.89609799,1426.4,1426.1,0.03339592]
[1673643504566,1.567,1426.2,1426.1,0.03339592]
[1673643504777,26.20822272,1426.2,1426.1,0.03339592]
[1673643504923,32.43164499,1426.2,1426.1,0.03339592]
[1673643505482,32.43164499,1426.2,1426.1,9.592e-05]
[1673643505923,32.43164499,1426.2,1426.0,10.11715326]
[1673643506076,22.42759272,1426.1,1426.0,10.11715326]
[1673643506290,4.863,1426.1,1426.0,10.11715326]
[1673643506552,3.23,1426.1,1426.0,10.11715326]
[1673643506709,17.25426,1426.1,1426.0,10.11715326]
[1673643506918,17.32026,1426.1,1426.0,10.11715326]
[1673643507160,17.32026,1426.1,1426.0,10.11515326]
[1673643507354,17.32026,1426.1,1426.0,10.11715326]
[1673643507982,10.30813,1426.1,1426.0,10.11715326]
[1673643508653,20.92659272,1426.1,1426.0,10.11715326]
[1673643508814,3.066,1426.1,1426.0,10.11715326]
[1673643509183,27.64472272,1426.1,1426.0,10.11515326]
[1673643509395,29.49472272,1426.1,1426.0,10.11715326]
[1673643509542,22.48259272,1426.1,1426.0,10.11715326]
[1673643510230,15.47046272,1426.1,1426.0,10.11715326]
[1673643510438,17.56819761,1426.1,1426.0,10.11715326]
[1673643510844,3.066,1426.1,1426.0,10.11715326]
[1673643511073,0.066,1426.2,1426.0,10.11715326]
[1673643511248,7.01146,1426.3,1426.0,10.11715326]
[1673643511249,14.08884,1426.3,1426.0,10.11715326]
[1673643511458,17.69517272,1426.3,1426.0,10.11715326]
[1673643511703,7.01213,1426.1,1426.0,10.11715326]
[1673643511866,0.066,1426.1,1426.0,10.11715326]
[1673643512077,7.07784,1426.2,1426.0,10.11715326]
[1673643512328,0.066,1426.2,1426.0,10.11715326]
[1673643512518,3.0,1426.2,1426.0,10.11715326]
[1673643512910,13.61798272,1426.2,1426.0,10.11715326]
[1673643513127,3.60633272,1426.1,1426.0,10.11715326]
[1673643513393,27.64272272,1426.1,1426.0,10.11715326]
[1673643513549,29.27572272,1426.1,1426.0,10.11715326]
[1673643514138,29.50572272,1426.1,1426.0,10.11715326]
[1673643515179,10.30813,1426.1,1426.0,10.11715326]
[1673643515789,30.52840672,1426.1,1426.0,10.11715326]
[1673643515978,32.09540672,1426.1,1426.0,10.11715326]
[1673643516608,32.83340672,1426.1,1426.0,10.11715326]
[1673643516817,26.63739,1426.1,1426.0,10.11715326]
[1673643517069,26.40739,1426.1,1426.0,10.11715326]
[1673643517439,23.23159272,1426.1,1426.0,10.11715326]
[1673643517701,30.24372272,1426.1,1426.0,10.11715326]
[1673643520867,30.24372272,1426.1,1426.0,0.062]
[1673643520868,59.9666629,1426.1,1426.0,0.062]
[1673643521184,32.27944,1425.9,1425.8,0.05594956]
[1673643521397,2.5,1425.8,1425.7,0.8765252]
[1673643521549,17.59813313,1425.8,1425.7,5.2e-06]
[1673643521761,17.59813313,1425.8,1425.5,0.03351115]
[1673643521762,37.16646755,1425.8,1425.5,0.03351115]
[1673643522085,31.17236,1425.6,1425.5,0.03351115]
[1673643522335,37.84469272,1425.6,1425.5,0.03351115]
[1673643522651,38.42169273,1425.6,1425.5,0.03351115]
[1673643522867,42.263862,1425.6,1425.5,0.03351115]
[1673643523089,40.709862,1425.6,1425.5,0.03351115]
[1673643523409,23.01677001,1425.6,1425.5,0.03351115]
[1673643523600,0.41300001,1425.6,1425.5,22.15575115]
[1673643523760,0.34700001,1425.6,1425.5,8.19159115]
[1673643523971,0.34700001,1425.6,1425.5,2.70307709]
[1673643524306,0.34700001,1425.6,1425.5,1.11051115]
[1673643524517,1.42300001,1425.6,1425.5,0.03351115]
[1673643526541,26.30310273,1425.6,1425.5,0.03351115]
[1673643526749,29.36910273,1425.6,1425.5,0.03351115]
[1673643526967,26.448345,1425.6,1425.5,0.03351115]
[1673643527179,19.433755,1425.6,1425.5,0.03351115]
[1673643527331,3.41300001,1425.6,1425.5,1.11051115]
[1673643527541,0.34700001,1425.6,1425.5,0.03351115]
[1673643527857,0.34700001,1425.6,1425.5,14.06367115]
[1673643528184,0.34700001,1425.6,1425.5,7.11459115]
[1673643528394,0.15985686,1425.6,1425.5,14.12967115]
[1673643528799,0.04957296,1425.6,1425.5,21.14475115]
[1673643529658,0.04957296,1425.6,1425.5,14.12967115]
[1673643529976,0.04957296,1425.6,1425.5,20.23600387]
[1673643530317,0.04957296,1425.6,1425.5,14.13933361]
[1673643531484,0.04957296,1425.6,1425.5,16.63933361]
[1673643531689,0.00927539,1425.6,1425.5,22.93139926]
[1673643531908,0.00927539,1425.6,1425.5,23.61410902]
[1673643532366,0.00927539,1425.6,1425.5,25.16474797]
[1673643532832,10.01226,1426.1,1425.5,10.393937]
[1673643533049,3.83633272,1426.0,1425.5,14.13933361]
[1673643533267,3.0,1425.9,1425.5,14.13933361]
[1673643533522,3.0,1425.9,1425.6,0.08697825]
[1673643533937,3.69023327,1425.9,1425.6,0.08697825]
[1673643534153,3.69023327,1425.9,1425.5,15.17309291]
[1673643534474,3.69023327,1425.9,1425.5,8.15801291]
[1673643534642,3.69023327,1425.9,1425.6,0.08698061]
[1673643535504,3.69023327,1425.9,1425.5,15.17274291]
[1673643535855,3.69023327,1425.9,1425.6,0.08698118]
[1673643536020,3.69023327,1425.9,1425.6,14.11611118]
[1673643536355,3.0,1425.9,1425.6,21.10972]
[1673643536679,3.0,1425.9,1425.7,0.0869756]
[1673643536846,3.0,1425.9,1425.7,7.1008656]
[1673643537061,0.23,1426.0,1425.7,7.07989]
[1673643537930,0.23,1426.0,1425.7,0.066]
[1673643538152,0.23,1426.0,1425.6,7.08054]
[1673643538153,12.58103472,1426.0,1425.6,7.08054]
[1673643538476,3.0,1425.9,1425.6,7.08054]
[1673643539197,3.0,1425.9,1425.7,0.08697678]
[1673643540507,27.71610272,1425.9,1425.5,1.14293291]
[1673643540717,8.37794299,1425.8,1425.5,0.03351115]
[1673643540956,17.25818,1425.7,1425.5,0.03351115]
[1673643541171,17.32418,1425.7,1425.5,0.03351115]
[1673643541616,20.93051272,1425.7,1425.5,0.03351115]
[1673643541785,12.71397399,1425.6,1425.5,0.03351115]
[1673643541992,30.03915399,1425.6,1425.5,0.03351115]
[1673643542397,3.066,1425.6,1425.5,7.13558903]
[1673643542611,3.0,1425.6,1425.5,7.20158903]
[1673643542943,3.0,1425.6,1425.5,14.21666903]
[1673643543171,0.0703,1425.9,1425.5,7.20158903]
[1673643543172,0.066,1425.8,1425.5,7.20158903]
[1673643543397,0.0703,1425.9,1425.6,0.08699024]
[1673643543573,0.0703,1425.9,1425.7,7.01409]
[1673643543783,0.0703,1425.9,1425.8,1.08123308]
[1673643544758,0.0703,1425.9,1425.8,15.19541053]
[1673643544927,0.0703,1425.9,1425.8,15.26141053]
[1673643545468,0.03295583,1425.9,1425.8,18.79516983]
[1673643545791,0.03295583,1425.9,1425.8,20.34580878]
[1673643546207,0.03295583,1425.9,1425.8,19.31204948]
[1673643546547,0.03295583,1425.9,1425.8,16.81204948]
[1673643546712,0.01032179,1425.9,1425.8,18.88826674]
[1673643547248,0.01032179,1425.9,1425.8,17.33762779]
[1673643547915,0.01032179,1425.9,1425.8,19.91627872]
[1673643548659,0.01032179,1425.9,1425.8,22.41627872]
[1673643549488,0.01032179,1425.9,1425.8,19.91627872]
[1673643550130,0.01032179,1425.9,1425.8,26.92987872]
[1673643550296,0.01032179,1425.9,1425.8,24.85366146]
[1673643551279,0.01032179,1425.9,1425.8,26.93364417]
[1673643551858,30.436,1426.3,1425.8,30.52699418]
[1673643552120,30.436,1426.3,1426.1,4.65659473]
[1673643552360,0.066,1426.3,1426.2,29.17333534]
[1673643552688,30.436,1426.7,1426.2,29.78261009]
[1673643552840,30.436,1426.7,1426.3,3.19333432]
[1673643553198,30.436,1426.7,1426.4,21.14197998]
[1673643553199,0.066,1426.7,1426.4,21.14197998]
[1673643553356,0.20478209,1426.9,1426.4,21.12100253]
[1673643553566,0.20478209,1426.9,1426.5,0.08693594]
[1673643553567,0.13878209,1426.9,1426.5,0.08693594]
[1673643553823,0.13878209,1426.9,1426.6,21.05205925]
[1673643554033,0.13878209,1426.9,1426.6,21.11805925]
[1673643554413,0.13878209,1426.9,1426.6,24.72439197]
[1673643555086,0.13878209,1426.9,1426.6,25.76374884]
[1673643555296,0.13878209,1426.9,1426.7,0.08691987]
[1673643555513,0.13878209,1426.9,1426.7,1.43590934]
[1673643555669,0.13878209,1426.9,1426.8,21.02607]
[1673643556038,0.13878209,1426.9,1426.8,26.75340272]
[1673643556193,2.09e-06,1426.9,1426.8,26.76636147]
[1673643556404,2.09e-06,1426.9,1426.8,27.588981]
[1673643557172,2.09e-06,1426.9,1426.8,30.588981]
[1673643558860,0.14535042,1427.5,1426.9,0.00199791]
[1673643559041,0.14535042,1427.5,1427.2,2.057]
[1673643559254,0.14535042,1427.5,1427.3,28.02492]
[1673643559471,0.14535042,1427.5,1427.4,15.44738934]
[1673643559707,0.14535042,1427.5,1427.4,15.51338934]
[1673643560091,0.14535042,1427.5,1427.4,14.07748]
[1673643560289,1.22135042,1427.5,1427.4,0.066]
[1673643560504,0.14535042,1427.5,1427.3,0.066]
[1673643560714,0.14535042,1427.5,1427.2,0.066]
[1673643560929,0.14535042,1427.5,1427.1,0.066]
[1673643560930,14.15613042,1427.5,1427.1,0.066]
[1673643561160,1.41561304,1427.4,1427.0,0.066]
[1673643561371,3.14535042,1427.5,1426.9,7.07591791]
[1673643561602,13.75701314,1427.5,1426.9,7.07591791]
[1673643561814,13.82301314,1427.5,1426.9,7.07591791]
[1673643562812,2.5,1427.4,1426.9,7.07591791]
[1673643563052,2.5,1427.4,1426.9,0.06799791]
[1673643563053,23.11837272,1427.4,1426.9,0.06799791]
[1673643563333,7.00682,1427.2,1426.9,0.00199791]
[1673643563552,7.07282,1427.2,1426.9,0.00199791]
[1673643563760,7.07278,1427.2,1426.9,0.00199791]
[1673643563969,10.67911272,1427.2,1426.9,0.00199791]
[1673643564234,1.06791127,1427.1,1426.9,0.00199791]
[1673643564511,2.5,1427.1,1426.9,0.00199791]
[1673643565601,6.10633272,1427.1,1426.9,0.00199791]
[1673643565780,9.17233272,1427.1,1426.9,0.00199791]
[1673643565989,23.18678272,1427.1,1426.9,0.00199791]
[1673643566602,16.17954272,1427.1,1426.9,0.00199791]
[1673643566810,1.61795427,1427.0,1426.9,0.00199791]
[1673643568294,1.61795427,1427.0,1426.9,7.01018791]
[1673643568648,3.066,1427.1,1426.9,0.06799791]
[1673643568813,3.066,1427.2,1426.9,0.00199791]
[1673643569024,2.5,1427.1,1426.9,0.00199791]
[1673643569385,13.67905272,1427.2,1426.9,0.00199791]
[1673643569605,6.67233272,1427.2,1426.9,0.00199791]
[1673643569910,3.066,1427.2,1426.9,21.02646791]
[1673643570231,3.0,1427.1,1426.9,21.09246791]
[1673643570384,0.066,1427.2,1426.9,21.09246791]
[1673643570590,3.066,1427.3,1426.9,21.09246791]
[1673643570854,0.066,1427.4,1427.0,0.02514389]
[1673643571159,30.51535042,1427.5,1427.1,21.02133]
[1673643571160,30.58135042,1427.5,1427.1,21.02133]
[1673643571376,34.18768314,1427.5,1427.1,21.08733]
[1673643571539,34.18768314,1427.5,1427.2,0.02514037]
[1673643571753,0.21135042,1427.5,1427.3,14.01246]
[1673643571964,0.14535042,1427.5,1427.3,21.08469]
[1673643572647,0.14535042,1427.5,1427.3,7.07223]
[1673643573009,0.14535042,1427.5,1427.3,0.066]
[1673643573215,0.14535042,1427.5,1427.2,7.09754037]
[1673643573482,0.14535042,1427.5,1427.2,0.09114037]
[1673643573483,11.47196618,1427.5,1427.2,0.09114037]
[1673643573710,3.60633272,1427.4,1427.0,7.00765]
[1673643573865,0.1,1427.3,1427.0,0.066]
[1673643574079,0.1,1427.3,1426.9,0.066]
[1673643574080,7.00672,1427.2,1426.9,0.066]
[1673643574338,3.0,1427.1,1426.7,14.08364]
[1673643574497,10.00742,1427.1,1426.7,7.07477]
[1673643574711,1.000742,1427.0,1426.7,14.08395]
[1673643574931,3.066,1427.1,1426.7,14.08395]
[1673643575263,3.0,1427.1,1426.7,14.08395]
[1673643575442,3.0,1427.1,1427.0,10.0]
[1673643575652,3.0,1427.1,1427.0,10.066]
[1673643576176,3.066,1427.2,1427.0,24.0814]
[1673643576555,4.23722727,1427.3,1427.0,31.0891]
[1673643576722,3.1,1427.3,1427.0,31.0891]
[1673643577069,3.102,1427.3,1427.0,31.0871]
[1673643577280,3.1,1427.3,1427.0,31.0891]
[1673643577435,0.1,1427.3,1427.0,31.0891]
[1673643577857,0.1,1427.3,1427.0,27.68773272]
[1673643578120,0.1,1427.3,1427.0,10.066]
[1673643578332,10.16003,1427.3,1427.0,10.066]
[1673643578502,3.2196,1427.3,1427.0,10.066]
[1673643578723,17.16665,1427.3,1427.0,10.066]
[1673643578912,17.23265,1427.3,1427.0,10.066]
[1673643579327,10.22596,1427.3,1427.0,10.066]
[1673643579543,1.022596,1427.2,1427.0,31.08902]
[1673643579765,3.2196,1427.3,1427.0,31.08902]
[1673643579766,0.166,1427.3,1427.0,31.08902]
[1673643579988,3.1,1427.3,1427.0,31.08902]
[1673643580709,3.1,1427.3,1427.0,10.066]
[1673643580710,0.1,1427.3,1427.0,10.066]
[1673643580921,10.15987,1427.3,1427.0,10.066]
[1673643581140,13.83216272,1427.3,1427.0,10.066]
[1673643581674,3.2196,1427.3,1427.0,10.066]
[1673643581849,3.2196,1427.3,1427.0,31.00389258]
[1673643581850,0.1,1427.3,1427.0,31.00389258]
[1673643582429,0.1,1427.3,1427.2,7.00672]
[1673643582640,0.1,1427.3,1427.2,7.07272]
[1673643582795,0.1,1427.3,1427.2,21.08616]
[1673643583430,0.1,1427.3,1427.2,24.69049272]
[1673643583682,0.1,1427.3,1427.2,24.69249272]
[1673643584692,0.1,1427.3,1427.2,24.69488421]
[1673643585470,0.1,1427.3,1427.2,14.08183149]
[1673643585697,0.1,1427.3,1427.2,24.69488421]
[1673643589554,0.1,1427.3,1427.2,21.08855149]
[1673643590910,0.1,1427.3,1427.2,7.07511149]
[1673643591327,0.1,1427.3,1427.2,1.14539149]
[1673643591641,0.1,1427.3,1427.1,0.066]
[1673643591642,1.078,1427.3,1427.1,0.066]
[1673643591987,1.0858,1427.2,1427.0,9.98093258]
[1673643592568,1.0858,1427.2,1427.0,16.98856258]
[1673643592789,1.0858,1427.2,1427.0,9.98093258]
[1673643593096,3.70319536,1427.2,1427.0,9.98093258]
[1673643593324,4.41781775,1427.1,1427.0,9.98093258]
[1673643593771,6.05882391,1427.1,1427.0,9.98093258]
[1673643593984,3.066,1427.1,1427.0,31.00403258]
[1673643594175,1.11349821,1427.2,1427.0,16.98863258]
[1673643594391,1.04749821,1427.2,1427.0,9.98093258]
[1673643594624,2.65310458,1427.2,1427.0,9.98093258]
[1673643594848,3.79502754,1427.2,1427.0,9.98093258]
[1673643594997,2.18942117,1427.2,1427.0,9.98093258]
[1673643595207,5.36496196,1427.2,1427.0,9.98093258]
[1673643595432,5.36496196,1427.2,1427.0,16.98858258]
[1673643595433,1.11349821,1427.2,1427.0,16.98858258]
[1673643595646,2.80734323,1427.3,1427.0,31.00393258]
[1673643595883,1.17144608,1427.3,1427.0,31.00393258]
[1673643596108,4.34691609,1427.3,1427.0,23.99623258]
[1673643596258,3.08776268,1427.2,1427.0,9.98093258]
[1673643596467,1.48218982,1427.2,1427.0,16.98859258]
[1673643596678,1.51842359,1427.3,1427.0,16.98859258]
[1673643596942,4.70821203,1427.3,1427.0,9.98093258]
[1673643597111,1.5602756,1427.2,1427.0,9.98093258]
[1673643597563,1.5602756,1427.2,1427.0,16.98863258]
[1673643597777,1.58442359,1427.3,1427.0,31.00403258]
[1673643597990,5.16210415,1427.4,1427.0,31.00403258]
[1673643598148,1.49975574,1427.3,1427.0,31.00403258]
[1673643598828,3.59585989,1427.3,1427.0,24.01920741]
[1673643599035,3.59585989,1427.3,1427.0,17.01150741]
[1673643599406,1.49975574,1427.2,1427.0,10.00380741]
[1673643599621,2.16210415,1427.3,1427.0,17.01147741]
[1673643599877,7.77084483,1427.4,1427.0,24.01917741]
[1673643600048,1.49981822,1427.3,1427.0,31.02687741]
[1673643600267,3.066,1427.4,1427.0,31.02687741]
[1673643600268,0.066,1427.4,1427.0,31.02687741]
[1673643600480,0.14535042,1427.5,1427.2,28.02648]
[1673643600691,0.14535042,1427.5,1427.4,21.01722]
[1673643600881,0.14535042,1427.5,1427.4,21.08322]
[1673643600882,1.64558352,1427.5,1427.4,21.08322]
[1673643601342,8.65083352,1427.5,1427.4,0.03]
[1673643601548,10.81293767,1427.5,1427.1,0.03]
[1673643601860,10.81293767,1427.5,1427.0,9.94493258]
[1673643601861,25.72383483,1427.3,1427.0,9.94493258]
[1673643602070,1.5002331,1427.2,1427.0,9.94493258]
[1673643602317,3.59633725,1427.2,1427.0,9.94493258]
[1673643602612,5.16210415,1427.3,1427.0,9.94493258]
[1673643602824,4.50030461,1427.2,1427.0,9.94493258]
[1673643603043,3.0,1427.2,1427.0,9.94493258]
[1673643603228,2.16210415,1427.3,1427.0,23.96014258]
[1673643603478,2.16210415,1427.4,1427.0,23.96014258]
[1673643603698,2.16210415,1427.4,1427.1,2.50341574]
[1673643603699,3.0,1427.4,1427.1,2.50341574]
[1673643604027,4.91619525,1427.5,1427.2,14.26378157]
[1673643604028,2.30745457,1427.5,1427.2,14.26378157]
[1673643604335,1.50031256,1427.4,1427.2,7.28847707]
[1673643604645,1.50031256,1427.4,1427.2,7.29047707]
[1673643604646,1.52741256,1427.4,1427.2,7.29047707]
[1673643604807,0.0271,1427.4,1427.2,0.0334155]
[1673643605022,0.0271,1427.4,1427.2,0.0034155]
[1673643605590,9.54450018,1427.4,1427.1,0.0533]
[1673643605747,2.60475018,1427.4,1427.1,7.0603]
[1673643605958,3.32337065,1427.4,1427.1,7.0903]
[1673643606428,2.53875018,1427.4,1427.2,3.60633272]
[1673643606588,0.967343,1427.4,1427.3,14.01246]
[1673643606798,0.967343,1427.4,1427.3,17.64879272]
[1673643607327,3e-06,1427.4,1427.3,19.71579272]
[1673643607539,4.2e-07,1427.5,1427.3,19.68603343]
[1673643607746,0.066,1427.8,1427.4,6.10633272]
[1673643608119,2.61914374,1427.9,1427.6,2.048]
[1673643608425,2.61914374,1427.9,1427.7,14.00854]
[1673643608586,2.61914374,1427.9,1427.7,14.03854]
[1673643609019,3.8798217,1427.9,1427.7,14.03854]
[1673643609228,3.8798217,1427.9,1427.7,7.03427]
[1673643610443,1.04773656,1427.9,1427.7,7.03427]
[1673643610656,2.61914374,1427.9,1427.7,0.03]
[1673643610804,2.61914374,1427.9,1427.5,7.03515]
[1673643610805,1.30965093,1427.8,1427.5,7.03515]
[1673643611009,4.14113319,1427.8,1427.5,0.03]
[1673643611224,2.88105811,1427.8,1427.4,9.53571]
[1673643611480,1.04773656,1427.7,1427.4,13.14204272]
[1673643611701,2.59594734,1427.7,1427.4,10.64204272]
[1673643611917,1.33584237,1427.7,1427.4,10.64204272]
[1673643612066,1.04773656,1427.7,1427.4,17.64778272]
[1673643612278,1.04773656,1427.7,1427.4,24.65352272]
[1673643612590,0.066,1427.8,1427.5,3.60633272]
[1673643612963,1.04773656,1427.9,1427.6,28.37967327]
[1673643613152,2.30761022,1427.9,1427.6,28.40967327]
[1673643613592,2.30761022,1427.9,1427.7,3.60633272]
[1673643613771,2.30761022,1427.9,1427.7,10.61027272]
[1673643613974,3.8790174,1427.9,1427.7,0.03]
[1673643614171,1.04773656,1427.8,1427.5,7.00522]
[1673643614389,10.88288585,1427.8,1427.5,0.03]
[1673643614593,13.88319585,1427.7,1427.3,0.03]
[1673643614805,4.11373656,1427.7,1427.3,7.00623]
[1673643615061,1.11373656,1427.8,1427.5,21.01575]
[1673643615224,1.04773656,1427.8,1427.5,24.65208272]
[1673643615445,2.68514374,1427.9,1427.7,21.01281]